[Event "Late-Titled-Tuesday-Blitz-May-28-2024"]
[Site "Chess.com"]
[Date "2024.05.28"]
[Round "3"]
[White "joksijoksi"]
[Black "lachesisQ"]
[Result "0-1"]
[WhiteElo "2526"]
[BlackElo "3056"]
[TimeControl "180+1"]
[EndTime "14:26:23 PDT"]
[Termination "lachesisQ won by resignation"]

1. d4 {[%clk 0:03:00]} 1... d5 {[%clk 0:02:58.3]} 2. c4 {[%clk 0:02:59.2]} 2...
e5 {[%clk 0:02:58.5]} 3. dxe5 {[%clk 0:02:57.9]} 3... d4 {[%clk 0:02:59.4]} 4.
Nf3 {[%clk 0:02:56.7]} 4... Nc6 {[%clk 0:02:59.7]} 5. a3 {[%clk 0:02:57.1]} 5...
a5 {[%clk 0:02:59.9]} 6. e3 {[%clk 0:02:39]} 6... Bc5 {[%clk 0:02:56.8]} 7. exd4
{[%clk 0:02:24.8]} 7... Nxd4 {[%clk 0:02:56.8]} 8. Be2 {[%clk 0:02:23]} 8... Ne7
{[%clk 0:02:51.1]} 9. O-O {[%clk 0:02:20.3]} 9... Bf5 {[%clk 0:02:47.2]} 10. Be3
{[%clk 0:01:40.6]} 10... Nxe2+ {[%clk 0:02:44.2]} 11. Qxe2 {[%clk 0:01:38.7]}
11... Bd3 {[%clk 0:02:44.6]} 12. Qd2 {[%clk 0:01:28.9]} 12... Bxe3 {[%clk
0:02:44]} 13. fxe3 {[%clk 0:01:20.5]} 13... Bxf1 {[%clk 0:02:43.7]} 14. Kxf1
{[%clk 0:01:21.1]} 14... O-O {[%clk 0:02:39.7]} 15. Nc3 {[%clk 0:01:19.3]} 15...
Qxd2 {[%clk 0:02:33.4]} 16. Nxd2 {[%clk 0:01:19.5]} 16... Ng6 {[%clk 0:02:34.3]}
17. Nf3 {[%clk 0:01:18.5]} 17... c6 {[%clk 0:02:33.5]} 18. h4 {[%clk 0:01:15.3]}
18... Rfe8 {[%clk 0:02:32.9]} 19. Kf2 {[%clk 0:01:11]} 19... Nxe5 {[%clk
0:02:32.7]} 20. Nxe5 {[%clk 0:01:11.7]} 20... Rxe5 {[%clk 0:02:33.5]} 21. Rd1
{[%clk 0:01:12.2]} 21... Re7 {[%clk 0:02:33.8]} 22. Na4 {[%clk 0:01:11.4]} 22...
h5 {[%clk 0:02:32.6]} 23. Rd3 {[%clk 0:01:11.3]} 23... Rae8 {[%clk 0:02:29.9]}
24. Nb6 {[%clk 0:01:05.2]} 24... Re4 {[%clk 0:02:29.2]} 25. g3 {[%clk
0:01:03.5]} 25... f6 {[%clk 0:02:24.8]} 26. b4 {[%clk 0:01:03.2]} 26... axb4
{[%clk 0:02:23.3]} 27. axb4 {[%clk 0:01:03.7]} 27... g5 {[%clk 0:02:23.8]} 28.
hxg5 {[%clk 0:01:01.5]} 28... fxg5 {[%clk 0:02:24.7]} 29. Nd7 {[%clk 0:00:54.8]}
29... Kg7 {[%clk 0:02:24.4]} 30. Nc5 {[%clk 0:00:54.2]} 30... R4e7 {[%clk
0:02:24.1]} 31. Nb3 {[%clk 0:00:50.7]} 31... Rf8+ {[%clk 0:02:23.7]} 32. Ke2
{[%clk 0:00:43.9]} 32... Ref7 {[%clk 0:02:23.9]} 33. Rd6 {[%clk 0:00:43.6]}
33... Rf6 {[%clk 0:02:19.2]} 34. Rd7+ {[%clk 0:00:42.4]} 34... R8f7 {[%clk
0:02:19.6]} 35. Rd8 {[%clk 0:00:41.9]} 35... h4 {[%clk 0:02:20.1]} 36. gxh4
{[%clk 0:00:41.7]} 36... gxh4 {[%clk 0:02:21]} 37. Rd4 {[%clk 0:00:39.6]} 37...
h3 {[%clk 0:02:20.4]} 38. Rh4 {[%clk 0:00:39.4]} 38... Rh6 {[%clk 0:02:20.5]}
39. Rg4+ {[%clk 0:00:39.8]} 39... Kh7 {[%clk 0:02:20.7]} 40. Rg1 {[%clk
0:00:37.7]} 0-1

[Event "Late-Titled-Tuesday-Blitz-May-28-2024"]
[Site "Chess.com"]
[Date "2024.05.28"]
[Round "3"]
[White "NMChessToImpress"]
[Black "CarlosAlbornoz"]
[Result "1-0"]
[WhiteElo "2317"]
[BlackElo "2829"]
[TimeControl "180+1"]
[EndTime "14:26:27 PDT"]
[Termination "NMChessToImpress won by resignation"]

1. e4 {[%clk 0:02:57.2]} 1... c6 {[%clk 0:03:00.2]} 2. d4 {[%clk 0:02:56.2]}
2... d5 {[%clk 0:03:00.6]} 3. e5 {[%clk 0:02:56.1]} 3... c5 {[%clk 0:03:00.9]}
4. dxc5 {[%clk 0:02:55.2]} 4... Nc6 {[%clk 0:03:01]} 5. a3 {[%clk 0:02:54.1]}
5... Nxe5 {[%clk 0:03:00.4]} 6. b4 {[%clk 0:02:53.6]} 6... g6 {[%clk 0:02:58.1]}
7. Bb2 {[%clk 0:02:50]} 7... Bg7 {[%clk 0:02:58.2]} 8. Bb5+ {[%clk 0:02:50.5]}
8... Bd7 {[%clk 0:02:57.3]} 9. Bxd7+ {[%clk 0:02:35.6]} 9... Qxd7 {[%clk
0:02:58.2]} 10. Nc3 {[%clk 0:02:35]} 10... Nc4 {[%clk 0:02:55.5]} 11. Qc1 {[%clk
0:02:33.3]} 11... Nh6 {[%clk 0:02:41.6]} 12. Nge2 {[%clk 0:02:31.4]} 12... Nf5
{[%clk 0:02:37.6]} 13. O-O {[%clk 0:02:29.5]} 13... Nxb2 {[%clk 0:02:33.4]} 14.
Qxb2 {[%clk 0:02:29.1]} 14... d4 {[%clk 0:02:34.3]} 15. Ne4 {[%clk 0:02:08.8]}
15... O-O {[%clk 0:02:32.7]} 16. Rad1 {[%clk 0:02:07.4]} 16... Rad8 {[%clk
0:02:31.3]} 17. N4g3 {[%clk 0:01:56.3]} 17... Nxg3 {[%clk 0:02:24.3]} 18. Nxg3
{[%clk 0:01:52.8]} 18... Qd5 {[%clk 0:02:21.1]} 19. Rd3 {[%clk 0:01:49.7]} 19...
e5 {[%clk 0:02:20.3]} 20. f3 {[%clk 0:01:50.1]} 20... f5 {[%clk 0:02:20.2]} 21.
Qb3 {[%clk 0:01:44.9]} 21... Qxb3 {[%clk 0:02:20]} 22. Rxb3 {[%clk 0:01:43.2]}
22... Rfe8 {[%clk 0:02:20.4]} 23. Rd1 {[%clk 0:01:33.8]} 23... e4 {[%clk
0:02:19.1]} 24. b5 {[%clk 0:01:27.5]} 24... h5 {[%clk 0:02:16.5]} 25. c6 {[%clk
0:01:26.5]} 25... bxc6 {[%clk 0:02:16.3]} 26. bxc6 {[%clk 0:01:27.4]} 26... h4
{[%clk 0:02:15.3]} 27. Ne2 {[%clk 0:01:26.9]} 27... exf3 {[%clk 0:02:14.3]} 28.
Nf4 {[%clk 0:01:17.3]} 28... g5 {[%clk 0:02:06.8]} 29. c7 {[%clk 0:01:07.6]}
29... Rc8 {[%clk 0:02:06.8]} 30. Nd5 {[%clk 0:01:06.5]} 30... Re5 {[%clk
0:02:00]} 31. Rb8 {[%clk 0:01:02.2]} 31... Ree8 {[%clk 0:01:37.8]} 32. Rxc8
{[%clk 0:01:01]} 32... Rxc8 {[%clk 0:01:38.2]} 33. Ne7+ {[%clk 0:01:01.4]} 33...
Kf7 {[%clk 0:01:38.5]} 34. Nxc8 {[%clk 0:01:02.3]} 34... Be5 {[%clk 0:01:39.2]}
35. Nd6+ {[%clk 0:00:59.8]} 35... Bxd6 {[%clk 0:01:39.5]} 36. c8=Q {[%clk
0:01:00.3]} 1-0

[Event "Late-Titled-Tuesday-Blitz-May-28-2024"]
[Site "Chess.com"]
[Date "2024.05.28"]
[Round "3"]
[White "KanalSzachowy"]
[Black "olawsson"]
[Result "0-1"]
[WhiteElo "2364"]
[BlackElo "2147"]
[TimeControl "180+1"]
[EndTime "14:26:32 PDT"]
[Termination "olawsson won by resignation"]

1. e4 {[%clk 0:03:00.9]} 1... c5 {[%clk 0:02:59.4]} 2. Nc3 {[%clk 0:02:59.2]}
2... a6 {[%clk 0:02:57.6]} 3. Nge2 {[%clk 0:02:57.8]} 3... d6 {[%clk 0:02:53.3]}
4. d4 {[%clk 0:02:57.4]} 4... cxd4 {[%clk 0:02:52.8]} 5. Qxd4 {[%clk 0:02:58.3]}
5... Nc6 {[%clk 0:02:51.3]} 6. Qd2 {[%clk 0:02:57.8]} 6... Nf6 {[%clk
0:02:49.6]} 7. b3 {[%clk 0:02:55.5]} 7... e6 {[%clk 0:02:31.5]} 8. Bb2 {[%clk
0:02:55]} 8... Be7 {[%clk 0:02:32.2]} 9. O-O-O {[%clk 0:02:54.4]} 9... Qc7
{[%clk 0:02:32.3]} 10. f4 {[%clk 0:02:52.5]} 10... b5 {[%clk 0:02:28.7]} 11. Ng3
{[%clk 0:02:42.7]} 11... O-O {[%clk 0:02:14.8]} 12. Kb1 {[%clk 0:02:37.3]} 12...
Bb7 {[%clk 0:02:12.1]} 13. Bd3 {[%clk 0:02:34.9]} 13... Nb4 {[%clk 0:02:01.5]}
14. h4 {[%clk 0:02:27]} 14... Nxd3 {[%clk 0:01:49.8]} 15. Qxd3 {[%clk
0:02:27.9]} 15... Rac8 {[%clk 0:01:35.6]} 16. h5 {[%clk 0:02:21.5]} 16... h6
{[%clk 0:01:33.9]} 17. f5 {[%clk 0:02:08.7]} 17... d5 {[%clk 0:01:31.1]} 18. e5
{[%clk 0:02:05.8]} 18... Qxe5 {[%clk 0:01:05.8]} 19. Nxb5 {[%clk 0:01:54.1]}
19... Qb8 {[%clk 0:00:55.5]} 20. Nd4 {[%clk 0:01:50.4]} 20... e5 {[%clk
0:00:53.4]} 21. Nf3 {[%clk 0:01:49.9]} 21... e4 {[%clk 0:00:46.5]} 22. Qd4
{[%clk 0:01:47]} 22... exf3 {[%clk 0:00:36.2]} 23. Rhe1 {[%clk 0:01:47.1]} 23...
Bc5 {[%clk 0:00:32]} 24. Qa4 {[%clk 0:01:43]} 24... Qxg3 {[%clk 0:00:31]} 25.
gxf3 {[%clk 0:01:40.9]} 0-1

[Event "Late-Titled-Tuesday-Blitz-May-28-2024"]
[Site "Chess.com"]
[Date "2024.05.28"]
[Round "3"]
[White "MikeSailer"]
[Black "Pig-filth"]
[Result "1-0"]
[WhiteElo "2124"]
[BlackElo "2359"]
[TimeControl "180+1"]
[EndTime "14:26:32 PDT"]
[Termination "MikeSailer won by checkmate"]

1. d4 {[%clk 0:03:00.3]} 1... Nc6 {[%clk 0:02:59.3]} 2. Nf3 {[%clk 0:03:00.4]}
2... e5 {[%clk 0:02:58.3]} 3. dxe5 {[%clk 0:03:00.4]} 3... d6 {[%clk 0:02:58.8]}
4. Bf4 {[%clk 0:03:00.8]} 4... Bg4 {[%clk 0:02:58.6]} 5. exd6 {[%clk 0:02:55.6]}
5... Qf6 {[%clk 0:02:58.5]} 6. e3 {[%clk 0:02:44]} 6... Qxb2 {[%clk 0:02:51.9]}
7. Nbd2 {[%clk 0:02:42.8]} 7... O-O-O {[%clk 0:02:43.3]} 8. Rb1 {[%clk 0:02:35]}
8... Qc3 {[%clk 0:02:34.5]} 9. Rb3 {[%clk 0:02:31.1]} 9... Bxf3 {[%clk
0:02:28.7]} 10. gxf3 {[%clk 0:02:30.6]} 10... Qa5 {[%clk 0:02:26.5]} 11. Bh3+
{[%clk 0:02:24.9]} 11... f5 {[%clk 0:02:23]} 12. dxc7 {[%clk 0:01:48.3]} 12...
Rd7 {[%clk 0:02:23]} 13. O-O {[%clk 0:01:31.4]} 13... Qxd2 {[%clk 0:02:20.2]}
14. Bxf5 {[%clk 0:01:20.6]} 14... Qxd1 {[%clk 0:02:11.7]} 15. Rxd1 {[%clk
0:01:20]} 15... Nf6 {[%clk 0:02:12.6]} 16. Rbd3 {[%clk 0:01:04.1]} 16... g5
{[%clk 0:01:52.3]} 17. Bg3 {[%clk 0:00:56.3]} 17... h5 {[%clk 0:01:12.5]} 18.
Rxd7 {[%clk 0:00:50]} 18... Nxd7 {[%clk 0:01:08.4]} 19. Bxd7# {[%clk 0:00:48.6]}
1-0

[Event "Late-Titled-Tuesday-Blitz-May-28-2024"]
[Site "Chess.com"]
[Date "2024.05.28"]
[Round "3"]
[White "TheDiscoOne"]
[Black "SoCalJuniorChess"]
[Result "1-0"]
[WhiteElo "2522"]
[BlackElo "2232"]
[TimeControl "180+1"]
[EndTime "14:26:38 PDT"]
[Termination "TheDiscoOne won by resignation"]

1. c4 {[%clk 0:03:00.9]} 1... Nf6 {[%clk 0:02:58.9]} 2. g3 {[%clk 0:02:58.4]}
2... c5 {[%clk 0:02:58.6]} 3. Bg2 {[%clk 0:02:56.2]} 3... Nc6 {[%clk 0:02:56]}
4. Nc3 {[%clk 0:02:56.1]} 4... d6 {[%clk 0:02:54.8]} 5. Nf3 {[%clk 0:02:52.6]}
5... g6 {[%clk 0:02:54]} 6. d4 {[%clk 0:02:52.8]} 6... cxd4 {[%clk 0:02:52]} 7.
Nxd4 {[%clk 0:02:53.7]} 7... Nxd4 {[%clk 0:02:48.8]} 8. Qxd4 {[%clk 0:02:54.5]}
8... Bg7 {[%clk 0:02:49.2]} 9. O-O {[%clk 0:02:54.2]} 9... O-O {[%clk
0:02:49.4]} 10. Qd3 {[%clk 0:02:52]} 10... Rb8 {[%clk 0:02:49.1]} 11. Bd2 {[%clk
0:02:44.2]} 11... Bd7 {[%clk 0:02:47.4]} 12. Rfd1 {[%clk 0:02:33.3]} 12... Bc6
{[%clk 0:02:47.3]} 13. Nd5 {[%clk 0:02:31.8]} 13... Bxd5 {[%clk 0:02:33.3]} 14.
cxd5 {[%clk 0:02:27.4]} 14... Nd7 {[%clk 0:02:33.9]} 15. Bc3 {[%clk 0:02:25.2]}
15... Nc5 {[%clk 0:02:32.5]} 16. Qd2 {[%clk 0:02:19.6]} 16... Bxc3 {[%clk
0:02:30]} 17. Qxc3 {[%clk 0:02:20.5]} 17... b5 {[%clk 0:02:27.9]} 18. Rd4 {[%clk
0:02:14]} 18... a5 {[%clk 0:02:24.8]} 19. Rh4 {[%clk 0:02:10.8]} 19... b4 {[%clk
0:02:24.9]} 20. Qe3 {[%clk 0:02:08.4]} 20... h5 {[%clk 0:02:15.4]} 21. Qh6
{[%clk 0:01:45.1]} 21... Nd7 {[%clk 0:02:01.8]} 22. g4 {[%clk 0:01:34.8]} 22...
e5 {[%clk 0:01:55.4]} 23. Rh3 {[%clk 0:01:31.7]} 23... Nf6 {[%clk 0:01:48.5]}
24. gxh5 {[%clk 0:01:28.8]} 24... Nxh5 {[%clk 0:01:48.6]} 25. Bf3 {[%clk
0:01:23.7]} 25... Qd7 {[%clk 0:01:03.9]} 26. Rxh5 {[%clk 0:01:23]} 26... gxh5
{[%clk 0:01:01.4]} 27. Kh1 {[%clk 0:01:23.6]} 27... f6 {[%clk 0:00:51.7]} 28.
Bxh5 {[%clk 0:01:21.1]} 1-0

[Event "Late-Titled-Tuesday-Blitz-May-28-2024"]
[Site "Chess.com"]
[Date "2024.05.28"]
[Round "3"]
[White "chess94cu"]
[Black "moro182"]
[Result "0-1"]
[WhiteElo "2637"]
[BlackElo "2889"]
[TimeControl "180+1"]
[EndTime "14:26:40 PDT"]
[Termination "moro182 won by resignation"]

1. e4 {[%clk 0:03:00]} 1... g6 {[%clk 0:03:00.9]} 2. d4 {[%clk 0:02:59.4]} 2...
Bg7 {[%clk 0:03:01.8]} 3. Nc3 {[%clk 0:02:59.5]} 3... a6 {[%clk 0:03:01.4]} 4.
a4 {[%clk 0:02:59.2]} 4... d6 {[%clk 0:02:56.5]} 5. Nf3 {[%clk 0:02:58.6]} 5...
Nf6 {[%clk 0:02:55.5]} 6. h3 {[%clk 0:02:58.1]} 6... O-O {[%clk 0:02:55.2]} 7.
Be2 {[%clk 0:02:57.5]} 7... Nc6 {[%clk 0:02:54.6]} 8. O-O {[%clk 0:02:53.3]}
8... e5 {[%clk 0:02:53.7]} 9. Be3 {[%clk 0:02:44.5]} 9... exd4 {[%clk
0:02:47.5]} 10. Nxd4 {[%clk 0:02:45.4]} 10... Re8 {[%clk 0:02:39.7]} 11. Nxc6
{[%clk 0:02:45]} 11... bxc6 {[%clk 0:02:40.6]} 12. Bf3 {[%clk 0:02:45.9]} 12...
Bd7 {[%clk 0:02:39]} 13. Re1 {[%clk 0:02:42.1]} 13... Qb8 {[%clk 0:02:38]} 14.
Rb1 {[%clk 0:02:41.5]} 14... Qb4 {[%clk 0:02:34]} 15. Qd2 {[%clk 0:02:32.3]}
15... Rab8 {[%clk 0:02:33.2]} 16. Bh6 {[%clk 0:02:17.8]} 16... Bh8 {[%clk
0:02:24.5]} 17. Qd3 {[%clk 0:01:54.3]} 17... Be6 {[%clk 0:02:20.6]} 18. b3
{[%clk 0:01:49.5]} 18... Nd7 {[%clk 0:02:11.9]} 19. Bd2 {[%clk 0:01:46.8]} 19...
Nc5 {[%clk 0:02:09.2]} 20. Qe3 {[%clk 0:01:42.9]} 20... Bd4 {[%clk 0:02:07.7]}
21. Nd5 {[%clk 0:01:31.2]} 21... cxd5 {[%clk 0:01:49.2]} 22. Bxb4 {[%clk
0:01:06.8]} 22... Bxe3 {[%clk 0:01:48]} 23. Rxe3 {[%clk 0:01:06.6]} 23... Rxb4
{[%clk 0:01:47.3]} 24. exd5 {[%clk 0:01:06.1]} 24... Bd7 {[%clk 0:01:47.6]} 25.
Rxe8+ {[%clk 0:01:05.8]} 25... Bxe8 {[%clk 0:01:48.5]} 26. Re1 {[%clk
0:01:06.3]} 26... Bd7 {[%clk 0:01:47.9]} 27. Be2 {[%clk 0:01:05.6]} 27... a5
{[%clk 0:01:43.7]} 28. Bc4 {[%clk 0:00:53]} 28... Nxa4 {[%clk 0:01:36.6]} 29.
Re7 {[%clk 0:00:50.5]} 29... Nc5 {[%clk 0:01:33]} 0-1

[Event "Late-Titled-Tuesday-Blitz-May-28-2024"]
[Site "Chess.com"]
[Date "2024.05.28"]
[Round "3"]
[White "TokChess"]
[Black "Beaterawn"]
[Result "0-1"]
[WhiteElo "2515"]
[BlackElo "2373"]
[TimeControl "180+1"]
[EndTime "14:26:47 PDT"]
[Termination "Beaterawn won by resignation"]

1. c4 {[%clk 0:03:00.9]} 1... e5 {[%clk 0:02:59.4]} 2. Nc3 {[%clk 0:02:59.4]}
2... Nc6 {[%clk 0:02:59.7]} 3. e3 {[%clk 0:02:55.4]} 3... Bc5 {[%clk 0:02:53.7]}
4. Nf3 {[%clk 0:02:51.6]} 4... d6 {[%clk 0:02:50.4]} 5. a3 {[%clk 0:02:49.3]}
5... a6 {[%clk 0:02:50]} 6. d4 {[%clk 0:02:47.6]} 6... exd4 {[%clk 0:02:46.3]}
7. exd4 {[%clk 0:02:47.4]} 7... Ba7 {[%clk 0:02:47]} 8. Be2 {[%clk 0:02:45.9]}
8... h6 {[%clk 0:02:46.7]} 9. O-O {[%clk 0:02:36.8]} 9... Nf6 {[%clk 0:02:46.9]}
10. b4 {[%clk 0:02:26]} 10... O-O {[%clk 0:02:46.5]} 11. Bb2 {[%clk 0:02:24.3]}
11... Bf5 {[%clk 0:02:37.8]} 12. d5 {[%clk 0:02:17.8]} 12... Ne7 {[%clk
0:02:27.5]} 13. Nd4 {[%clk 0:02:09.3]} 13... Qd7 {[%clk 0:02:12.5]} 14. Re1
{[%clk 0:02:07.2]} 14... Rfe8 {[%clk 0:02:10.2]} 15. Qd2 {[%clk 0:01:53.1]}
15... Ng6 {[%clk 0:02:06.6]} 16. Nxf5 {[%clk 0:01:43.3]} 16... Qxf5 {[%clk
0:02:07.5]} 17. Bd3 {[%clk 0:01:43.2]} 17... Bxf2+ {[%clk 0:02:06.5]} 18. Qxf2
{[%clk 0:01:03.9]} 18... Qxd3 {[%clk 0:02:06]} 19. Red1 {[%clk 0:00:53.1]} 19...
Qxc4 {[%clk 0:01:36.2]} 20. Rd4 {[%clk 0:00:53]} 20... Qb3 {[%clk 0:01:36.1]}
21. Rf1 {[%clk 0:00:50.6]} 21... Ne5 {[%clk 0:01:22.5]} 22. Qg3 {[%clk
0:00:35.4]} 22... Qxb2 {[%clk 0:01:10.5]} 0-1

[Event "Late-Titled-Tuesday-Blitz-May-28-2024"]
[Site "Chess.com"]
[Date "2024.05.28"]
[Round "3"]
[White "Kostukov_Alex"]
[Black "DucksParadise"]
[Result "0-1"]
[WhiteElo "2373"]
[BlackElo "2562"]
[TimeControl "180+1"]
[EndTime "14:26:54 PDT"]
[Termination "DucksParadise won by resignation"]

1. g3 {[%clk 0:02:57.5]} 1... h5 {[%clk 0:02:59]} 2. Nf3 {[%clk 0:02:56.3]} 2...
e5 {[%clk 0:02:56.8]} 3. Nxe5 {[%clk 0:02:54.1]} 3... h4 {[%clk 0:02:57.1]} 4.
Bg2 {[%clk 0:02:50.5]} 4... Nc6 {[%clk 0:02:49.6]} 5. d4 {[%clk 0:02:41.5]} 5...
Bd6 {[%clk 0:02:03.7]} 6. f4 {[%clk 0:02:36.8]} 6... hxg3 {[%clk 0:01:46.3]} 7.
hxg3 {[%clk 0:02:36]} 7... Rxh1+ {[%clk 0:01:47.2]} 8. Bxh1 {[%clk 0:02:36.2]}
8... Nh6 {[%clk 0:01:47.9]} 9. e4 {[%clk 0:02:30.8]} 9... Bxe5 {[%clk
0:01:22.2]} 10. dxe5 {[%clk 0:02:15.9]} 10... d6 {[%clk 0:01:17.6]} 11. exd6
{[%clk 0:02:14.8]} 11... cxd6 {[%clk 0:01:17.3]} 12. Nc3 {[%clk 0:02:10.6]}
12... Qb6 {[%clk 0:01:10.3]} 13. Kf1 {[%clk 0:01:51.1]} 13... Bh3+ {[%clk
0:01:09.7]} 14. Bg2 {[%clk 0:01:51]} 14... Ng4 {[%clk 0:01:10.1]} 15. Qd2 {[%clk
0:01:25.5]} 15... Nh2+ {[%clk 0:01:06.8]} 16. Ke2 {[%clk 0:01:14.3]} 16... Bxg2
{[%clk 0:01:04.3]} 17. Nd5 {[%clk 0:01:09.7]} 17... Qg1 {[%clk 0:00:56.4]} 18.
Kd3 {[%clk 0:00:54.9]} 18... Qd4+ {[%clk 0:00:51.4]} 19. Ke2 {[%clk 0:00:53.5]}
19... Bf3+ {[%clk 0:00:49.9]} 0-1

[Event "Late-Titled-Tuesday-Blitz-May-28-2024"]
[Site "Chess.com"]
[Date "2024.05.28"]
[Round "3"]
[White "marianokar"]
[Black "2L8IWUN"]
[Result "1/2-1/2"]
[WhiteElo "2397"]
[BlackElo "2176"]
[TimeControl "180+1"]
[EndTime "14:26:57 PDT"]
[Termination "Game drawn by repetition"]

1. Nf3 {[%clk 0:02:53.6]} 1... Nf6 {[%clk 0:02:59.7]} 2. c4 {[%clk 0:02:39]}
2... e6 {[%clk 0:02:59.5]} 3. Nc3 {[%clk 0:02:13.2]} 3... d5 {[%clk 0:02:59.1]}
4. d4 {[%clk 0:02:12.8]} 4... Nbd7 {[%clk 0:02:59.7]} 5. e3 {[%clk 0:02:11.9]}
5... a6 {[%clk 0:02:59]} 6. cxd5 {[%clk 0:02:10.6]} 6... exd5 {[%clk 0:02:59.9]}
7. Bd3 {[%clk 0:02:10.1]} 7... Bd6 {[%clk 0:02:59.7]} 8. O-O {[%clk 0:02:07]}
8... O-O {[%clk 0:03:00]} 9. b3 {[%clk 0:02:05]} 9... Re8 {[%clk 0:02:55.8]} 10.
Bb2 {[%clk 0:02:03.9]} 10... b6 {[%clk 0:02:56]} 11. Rc1 {[%clk 0:02:02.2]}
11... Bb7 {[%clk 0:02:55.7]} 12. Ne2 {[%clk 0:01:59.2]} 12... c5 {[%clk
0:02:49.3]} 13. Ng3 {[%clk 0:01:57.2]} 13... g6 {[%clk 0:02:38.3]} 14. Qc2
{[%clk 0:01:46.8]} 14... Ne4 {[%clk 0:02:35.9]} 15. Rfd1 {[%clk 0:01:34]} 15...
Qe7 {[%clk 0:02:34.4]} 16. dxc5 {[%clk 0:01:28.8]} 16... Ndxc5 {[%clk 0:02:31]}
17. Nd4 {[%clk 0:01:22.6]} 17... Rac8 {[%clk 0:02:19.5]} 18. Qe2 {[%clk
0:01:19]} 18... Nxd3 {[%clk 0:02:14.3]} 19. Qxd3 {[%clk 0:01:16.8]} 19... Ba3
{[%clk 0:02:04.3]} 20. Bxa3 {[%clk 0:01:10.5]} 20... Qxa3 {[%clk 0:02:05.2]} 21.
Rxc8 {[%clk 0:01:06.2]} 21... Rxc8 {[%clk 0:02:06.1]} 22. Nxe4 {[%clk
0:00:38.5]} 22... dxe4 {[%clk 0:02:07]} 23. Qd2 {[%clk 0:00:30.1]} 23... Qc5
{[%clk 0:02:05.3]} 24. h3 {[%clk 0:00:28.6]} 24... h5 {[%clk 0:01:54.8]} 25. Ne2
{[%clk 0:00:26.6]} 25... Qc2 {[%clk 0:01:53.7]} 26. Nd4 {[%clk 0:00:18.3]} 26...
Qc5 {[%clk 0:01:46.2]} 27. Ne2 {[%clk 0:00:16.5]} 27... Qc2 {[%clk 0:01:46.3]}
28. Nd4 {[%clk 0:00:11.9]} 28... Qc5 {[%clk 0:01:33.3]} 1/2-1/2

[Event "Late-Titled-Tuesday-Blitz-May-28-2024"]
[Site "Chess.com"]
[Date "2024.05.28"]
[Round "3"]
[White "agustinv04"]
[Black "MyDream003"]
[Result "0-1"]
[WhiteElo "2511"]
[BlackElo "2819"]
[TimeControl "180+1"]
[EndTime "14:27:03 PDT"]
[Termination "MyDream003 won by resignation"]

1. Nf3 {[%clk 0:03:00.9]} 1... Nf6 {[%clk 0:02:59.2]} 2. d4 {[%clk 0:03:01]}
2... d5 {[%clk 0:02:59.6]} 3. c4 {[%clk 0:03:00.8]} 3... e6 {[%clk 0:02:58.3]}
4. Nc3 {[%clk 0:03:00.8]} 4... c6 {[%clk 0:02:57.7]} 5. e3 {[%clk 0:03:00.5]}
5... Nbd7 {[%clk 0:02:57.9]} 6. Be2 {[%clk 0:03:00.9]} 6... Bd6 {[%clk
0:02:57.9]} 7. O-O {[%clk 0:03:01.3]} 7... O-O {[%clk 0:02:58]} 8. b3 {[%clk
0:03:01.6]} 8... Ne4 {[%clk 0:02:53.7]} 9. Bb2 {[%clk 0:02:58.8]} 9... f5 {[%clk
0:02:53.7]} 10. g3 {[%clk 0:02:44.9]} 10... Qf6 {[%clk 0:02:47.4]} 11. Ne1
{[%clk 0:02:40.2]} 11... Qh6 {[%clk 0:02:46.6]} 12. Nd3 {[%clk 0:02:36.7]} 12...
g5 {[%clk 0:02:36.3]} 13. f4 {[%clk 0:02:34.1]} 13... Ndf6 {[%clk 0:02:33.1]}
14. Ne5 {[%clk 0:02:32.5]} 14... Nxc3 {[%clk 0:02:33.1]} 15. Bxc3 {[%clk
0:02:32]} 15... Ne4 {[%clk 0:02:33.7]} 16. Be1 {[%clk 0:02:31.5]} 16... Qg7
{[%clk 0:02:25.3]} 17. Bf3 {[%clk 0:02:22.6]} 17... Nf6 {[%clk 0:02:23.4]} 18.
a4 {[%clk 0:02:20.7]} 18... Bd7 {[%clk 0:02:22.7]} 19. a5 {[%clk 0:02:16.8]}
19... a6 {[%clk 0:02:22.8]} 20. Qe2 {[%clk 0:01:59]} 20... Be8 {[%clk
0:02:22.7]} 21. Kh1 {[%clk 0:01:53]} 21... Kh8 {[%clk 0:02:22.2]} 22. Bc3 {[%clk
0:01:50.1]} 22... Rg8 {[%clk 0:02:20.3]} 23. Bg2 {[%clk 0:01:43.8]} 23... Rc8
{[%clk 0:02:19]} 24. Qd2 {[%clk 0:01:32.1]} 24... Qh6 {[%clk 0:02:13.6]} 25. Nf3
{[%clk 0:01:30.5]} 25... Ne4 {[%clk 0:02:11.5]} 26. Qe1 {[%clk 0:01:29.4]} 26...
gxf4 {[%clk 0:02:10.6]} 27. exf4 {[%clk 0:01:25.6]} 27... Nxg3+ {[%clk
0:02:10.1]} 28. Kg1 {[%clk 0:01:26]} 28... Ne4 {[%clk 0:02:07.1]} 29. Ne5 {[%clk
0:01:21.9]} 29... Rc7 {[%clk 0:02:07.1]} 30. Ra2 {[%clk 0:01:19.2]} 30... Rcg7
{[%clk 0:02:07]} 31. Bb4 {[%clk 0:01:17.7]} 31... Bxe5 {[%clk 0:01:59.4]} 32.
dxe5 {[%clk 0:01:02.9]} 32... Qh3 {[%clk 0:01:59.3]} 33. Qe2 {[%clk 0:00:50.6]}
33... Bh5 {[%clk 0:01:57.9]} 34. Qc2 {[%clk 0:00:43.6]} 34... Bf3 {[%clk
0:01:57]} 35. Rxf3 {[%clk 0:00:40.4]} 35... Qxf3 {[%clk 0:01:57.9]} 36. Be1
{[%clk 0:00:40]} 36... Rxg2+ {[%clk 0:01:51]} 37. Qxg2 {[%clk 0:00:39.2]} 37...
Rxg2+ {[%clk 0:01:51.9]} 38. Rxg2 {[%clk 0:00:38.6]} 38... Qd1 {[%clk
0:01:47.6]} 39. Kf1 {[%clk 0:00:36.9]} 39... Qxb3 {[%clk 0:01:46.5]} 40. Bh4
{[%clk 0:00:36.4]} 40... Qd3+ {[%clk 0:01:44.8]} 41. Kg1 {[%clk 0:00:35.4]}
41... Qd1+ {[%clk 0:01:44.9]} 0-1